fUSD/lending_fUSD_20240822
["ID","MTS","AMOUNT","RATE_DAILY","PERIOD"]
[335587313,1724344279817,300.16274055,0.00010097,2]
[335587315,1724344289821,281.66,8.369e-05,2]
[335587318,1724344448136,250.15156537,0.00010097,2]
[335587320,1724344469304,211.0142088,0.00010097,2]
[335587321,1724344598279,217.4,9.917e-05,2]
[335587322,1724344604682,1050.0,0.0001,2]
[335587323,1724344664322,-1300.0,0.000102,3]
[335587324,1724344664345,-1800.0,0.000103,3]
[335587325,1724344664367,-2200.0,0.000104,3]
[335587326,1724344664389,-400.0,0.000105,3]
[335587327,1724344664410,-400.0,0.000106,3]
[335587328,1724344664431,-531.53,0.000106,2]
[335587329,1724344664452,-531.53,0.000106,2]
[335587330,1724344664473,-531.53,0.000106,2]
[335587331,1724344664493,-965.22,0.000106,2]
[335587332,1724344664513,-323.17,0.000106,2]
[335587333,1724344664535,-855.75,0.000106,2]
[335587334,1724344664560,-161.27,0.000106,2]
[335587336,1724344691553,-629.49,0.000106,2]
[335587337,1724344691575,-421.47,0.000106,2]
[335587338,1724344691595,-421.47,0.000106,2]
[335587339,1724344691617,-1581.26,0.000106,2]
[335587340,1724344691642,-162.596936,0.00010614,2]
[335587341,1724344691662,-162.596936,0.00010614,2]
[335587342,1724344691685,-281.66,0.00010633,2]
[335587343,1724344691708,-400.0,0.000107,3]
[335587344,1724344691729,-1062.31,0.000107,2]
[335587345,1724344691749,-162.596936,0.00010791,2]
[335587346,1724344691770,-400.0,0.000108,3]
[335587347,1724344691790,-652.57737593,0.0001089,2]
[335587348,1724344691811,-798.51782,0.0001089,2]
[335587349,1724344691832,-150.0,0.00010898,2]
[335587350,1724344691853,-713.45399607,0.00010899,2]
[335587351,1724344751596,1000.0,0.00010001,2]
[335587352,1724344836294,270.83,8.219e-05,2]
[335587360,1724345037316,155.0,9.962e-05,2]
[335587361,1724345065291,184.85,9.981e-05,2]
[335587369,1724345287679,1022.59922684,0.00010097,2]
[335587370,1724345299722,200.0,9.963e-05,2]
[335587371,1724345342660,1294.03610486,0.00010097,2]
[335587372,1724345391599,410.46328679,0.00010097,2]
[335587374,1724345400913,272.26,8.219e-05,2]
[335587376,1724345429189,155.0,0.00010097,2]
[335587380,1724345431510,-1578.55756815,0.00010121,2]
[335587382,1724345431521,-863.503638,0.00010121,2]
[335587384,1724345431532,-1757.31879385,0.00010121,2]
[335587386,1724345431542,-3706.03721477,0.00010371,2]
[335587389,1724345431556,-784.98522457,0.00010371,2]
[335587391,1724345431571,-737.50301691,0.00010371,2]
[335587393,1724345431580,-84.99698309,0.0001047,2]
[335587395,1724345431591,-215.00301691,0.0001047,2]
[335587397,1724345431600,-155.19385311,0.00010471,2]
[335587399,1724345431610,-477.15433899,0.00010471,2]
[335587401,1724345431619,-159.22799854,0.00010471,2]
[335587404,1724345431632,-2667.70197137,0.00010471,2]
[335587406,1724345431644,-2630.0,0.00010471,2]
[335587407,1724345431655,-110.05171903,0.00010471,2]
[335587408,1724345431664,-148.71679706,0.00010476,2]
[335587409,1724345431675,-123.54320294,0.00010476,2]
[335587410,1724345431685,-419.31016917,0.00010566,2]
[335587411,1724345431694,-298.82691546,0.00010799,2]
[335587412,1724345431703,-421.47,0.000108,2]
[335587413,1724345431712,-790.76,0.000108,2]
[335587414,1724345431721,-692.23,0.000108,2]
[335587415,1724345431730,-421.47,0.000108,2]
[335587416,1724345431739,-790.76,0.000108,2]
[335587417,1724345431748,-150.0,0.00010898,2]
[335587418,1724345431757,-2500.0,0.00010899,2]
[335587419,1724345431767,-6786.546,0.00010899,2]
[335587420,1724345431776,-916.22447243,0.00010899,2]
[335587421,1724345431787,-319.86038199,0.00010899,2]
[335587422,1724345431799,-44466.09621709,0.00010899,2]
[335587423,1724345431807,-161.15103085,0.00010899,2]
[335587424,1724345431817,-161.15103081,0.00010899,2]
[335587425,1724345431825,-161.15103081,0.00010899,2]
[335587426,1724345431834,-161.15103081,0.00010899,2]
[335587428,1724345431843,-161.15103081,0.00010899,2]
[335587430,1724345431852,-161.15103081,0.00010899,2]
[335587431,1724345431865,-161.15103081,0.00010899,2]
[335587432,1724345431875,-161.15103081,0.00010899,2]
[335587433,1724345431885,-162.95196994,0.00010899,2]
[335587434,1724345431893,-388.84316885,0.00010899,2]
[335587435,1724345431906,-790.76,0.000109,2]
[335587436,1724345431916,-818.41,0.000109,2]
[335587437,1724345431925,-790.76,0.000109,2]
[335587438,1724345431937,-808.12,0.000109,2]
[335587439,1724345431946,-842.87,0.000109,2]
[335587440,1724345431955,-790.76,0.000109,2]
[335587441,1724345431964,-790.76,0.000109,2]
[335587442,1724345431972,-790.76,0.000109,2]
[335587443,1724345431982,-421.47,0.000109,2]
[335587444,1724345431991,-189.98952297,0.000109,2]
[335587445,1724345431999,-189.98952295,0.000109,2]
[335587446,1724345432008,-189.98952295,0.000109,2]
[335587447,1724345432017,-189.98952295,0.000109,2]
[335587448,1724345432026,-189.98952295,0.000109,2]
[335587449,1724345432035,-189.98952295,0.000109,2]
[335587450,1724345432044,-189.98952295,0.000109,2]
[335587451,1724345432053,-161.15103081,0.000109,2]
[335587452,1724345432062,-189.98952295,0.000109,2]
[335587453,1724345432073,-1000.0,0.000109,2]
[335587454,1724345432082,-170.04441282,0.000109,2]
[335587455,1724345432092,-1227.028,0.00010928,2]
[335587456,1724345432103,-150.0,0.00010938,2]
[335587457,1724345432111,-150.0,0.00010938,2]
[335587458,1724345432121,-150.0,0.00010938,2]
[335587459,1724345432130,-153.97,0.00010959,2]
[335587460,1724345432139,-469.18,0.00010959,2]
[335587461,1724345432148,-348.36,0.00010959,2]
[335587462,1724345432157,-250.0,0.00010959,2]
[335587463,1724345432166,-162.596936,0.00010967,2]
[335587464,1724345432175,-150.78,0.00010989,2]
[335587465,1724345432184,-23597.14360926,0.0001099,2]
[335587466,1724345432204,-1935.23226309,0.0001099,2]
[335587467,1724345432215,-397.08384421,0.0001099,2]
[335587473,1724345437582,-1249.28409428,0.0001099,2]
[335587474,1724345437592,-2057.04389973,0.00010992,2]
[335587475,1724345437616,-1451.33807564,0.00010992,2]
[335587476,1724345437627,-6817.17620449,0.00010992,2]
[335587477,1724345437780,-1606.73102151,0.00010992,2]
[335587478,1724345437838,-3991.40437061,0.00010992,2]
[335587638,1724345439606,-8937.96240344,0.00010992,2]
[335587640,1724345439618,-3621.67676,0.00010992,2]
[335587643,1724345439629,-7589.34075963,0.00010992,2]
[335587647,1724345439661,-753.83647302,0.00010992,2]
[335587649,1724345439672,-306.09729367,0.00010992,2]
[335587651,1724345439683,-424.59996164,0.00010992,2]
[335587661,1724345439959,-576.81353412,0.00010992,2]
[335587662,1724345439969,-2913.57138407,0.00010992,2]
[335587663,1724345439981,-455.87227473,0.00010992,2]
[335587664,1724345439990,-854.60716229,0.00010992,2]
[335587665,1724345439999,-1825.82304369,0.00010992,2]
[335587666,1724345440015,-526.41,0.00010992,2]
[335588013,1724345443501,-3582.73640962,0.00010992,2]
[335588016,1724345443516,-4303.36215634,0.00010992,2]
[335588487,1724345472407,650.89584616,9.962e-05,2]
[335588488,1724345472687,155.0,9.962e-05,2]
[335588489,1724345481249,477.15433899,9.962e-05,2]
[335588495,1724345566874,1960308.51834443,0.00025,60]
[335588500,1724345722065,298.82691546,0.00010097,2]
[335588501,1724345737073,298.82691546,0.00010097,2]
[335588506,1724345949592,277.98,8.219e-05,2]
[335588509,1724346067449,208.64,0.00010085,2]
[335588510,1724346288914,160.0,9.998e-05,2]
[335588511,1724346334747,310.0,0.00010097,2]
[335588512,1724346400540,264.08,8.219e-05,2]
[335588513,1724346420683,1050.0,0.0001,2]
[335588514,1724346441392,328.92802902,0.0001,2]
[335588515,1724346533324,155.0,0.00010097,2]
[335588516,1724346541692,15299.96278989,0.0001,2]
[335588517,1724346544336,155.0,0.00010097,2]
[335588519,1724346565792,213.02,9.979e-05,2]
[335588520,1724346570391,303.90593034,0.00010097,2]
[335588528,1724346599856,301.35006,0.00010097,2]
[335588534,1724346631729,-329.14260328,0.00010123,2]
[335588535,1724346631742,-510.85739672,0.00010123,2]
[335588536,1724346631751,-184.85,0.00010139,2]
[335588537,1724346631761,-264.08,0.00010477,2]
[335588538,1724346631770,-24.62236379,0.00010595,2]
[335588539,1724346631781,-700.0,0.00010595,2]
[335588540,1724346631841,-1001.07908928,0.00010595,2]
[335588541,1724346631902,-628.4461735,0.00010595,2]
[335588542,1724346631913,-288.85237343,0.00010595,2]
[335588543,1724346631922,-205.48426298,0.00010614,2]
[335588544,1724346631965,-35.22076202,0.00010614,2]
[335588546,1724346631985,-1500.0,0.00010629,2]
[335588548,1724346631994,-196.06428795,0.00010717,2]
[335588550,1724346632006,-817.92,0.00010717,2]
[335588552,1724346632017,-486.01571205,0.00010717,2]
[335588553,1724346632026,-113.88428795,0.00010754,2]
[335588559,1724346637787,-1386.11571205,0.00010754,2]
[335588560,1724346637797,-300.0,0.00010759,2]
[335588561,1724346637806,-300.0,0.00010759,2]
[335588562,1724346637815,-1492.98958919,0.0001076,2]
[335588563,1724346637981,-1492.98958919,0.00010778,2]
[335588564,1724346637990,-1500.0,0.00010793,2]
[335588565,1724346637999,-1500.0,0.00010796,2]
[335588566,1724346638009,-1500.0,0.00010841,2]
[335588567,1724346638018,-150.0,0.00010856,2]
[335588568,1724346638028,-1524.043,0.00010858,2]
[335588569,1724346638037,-289.0,0.00010858,2]
[335588570,1724346638046,-3124.86210957,0.00010858,2]
[335588571,1724346638058,-805.98015679,0.00010858,2]
[335588572,1724346638074,-282.04696975,0.00010858,2]
[335588573,1724346638085,-566.76354058,0.00010858,2]
[335588574,1724346638097,-600.0,0.00010858,2]
[335588575,1724346638108,-14985.11922331,0.00010858,2]
[335588576,1724346638118,-1077.0,0.00010858,2]
[335588577,1724346638127,-355.93835208,0.00010861,2]
[335588578,1724346638137,-1521.03123243,0.00010863,2]
[335588579,1724346638146,-1492.98958919,0.00010879,2]
[335588580,1724346638155,-2080.45244,0.0001088,2]
[335588581,1724346638164,-631.66792316,0.00010888,2]
[335588582,1724346638174,-2417.58121075,0.00010899,2]
[335588583,1724346638182,-1000.0,0.00010899,2]
[335588584,1724346638191,-682.23,0.00010899,2]
[335588585,1724346638200,-282.48,0.00010899,2]
[335588586,1724346638209,-183.97398846,0.00010899,2]
[335588587,1724346638218,-356.53576524,0.00010899,2]
[335588588,1724346638228,-490.7068728,0.000109,2]
[335588589,1724346638238,-490.70687273,0.000109,2]
[335588590,1724346638247,-490.70687273,0.000109,2]
[335588591,1724346638260,-490.70687273,0.000109,2]
[335588592,1724346638269,-490.70687273,0.000109,2]
[335588593,1724346638277,-477.63483666,0.000109,2]
[335588594,1724346638289,-13.07203607,0.000109,2]
[335588595,1724346638299,-490.70687273,0.000109,2]
[335588596,1724346638309,-490.70687273,0.000109,2]
[335588597,1724346638317,-421.47,0.000109,2]
[335588598,1724346638326,-150.0,0.000109,2]
[335588599,1724346638337,-421.47,0.000109,2]
[335588600,1724346638347,-420.97,0.000109,2]
[335588601,1724346638356,-421.47,0.000109,2]
[335588602,1724346638365,-150.0,0.000109,2]
[335588603,1724346638374,-420.54,0.000109,2]
[335588604,1724346638383,-790.76,0.000109,2]
[335588605,1724346638392,-1558.354,0.00010928,2]
[335588606,1724346638401,-623.0,0.00010928,2]
[335588607,1724346638410,-1257.0,0.00010928,2]
[335588608,1724346638419,-150.0,0.00010928,2]
[335588609,1724346638429,-446.0,0.00010928,2]
[335588610,1724346638438,-810.0,0.00010928,2]
[335588611,1724346638447,-556.0,0.00010928,2]
[335588612,1724346638456,-1137.0,0.00010928,2]
[335588613,1724346638465,-1896.0,0.00010928,2]
[335588615,1724346638475,-551.0,0.00010928,2]
[335588617,1724346638483,-3431.49,0.00010928,2]
[335588619,1724346638492,-247.0,0.00010928,2]
[335588621,1724346638501,-1173.0,0.00010928,2]
[335588623,1724346638510,-192.0,0.0001094,2]
[335588625,1724346638520,-250.0,0.00010959,2]
[335588627,1724346638529,-152.14,0.00010959,2]
[335588629,1724346638538,-150.78,0.00010989,2]
[335588631,1724346638548,-281.12166788,0.00010989,2]
[335588633,1724346638558,-7647.4358685,0.00010992,2]
[335588635,1724346638567,-18222.68227382,0.00010992,2]
[335588637,1724346638579,-285.49172499,0.00010992,2]
[335588639,1724346638589,-998.4695,0.00010992,2]
[335588641,1724346638604,-7198.28290195,0.00010992,2]
[335588644,1724346638615,-713.52089121,0.00010992,2]
[335588646,1724346638627,-655.46979079,0.00010992,2]
[335588648,1724346638638,-2914.29283614,0.00010992,2]
[335588650,1724346638648,-2747.4492586,0.00010992,2]
[335588652,1724346638658,-2457.21723831,0.00010996,2]
[335588654,1724346638668,-2457.21723831,0.00010997,2]
[335588656,1724346638677,-12778.79948344,0.00010997,2]
[335588658,1724346638694,-544.01346895,0.00010997,2]
[335588660,1724346638705,-464.49215407,0.00010997,2]
[335588683,1724346639941,-543.43566378,0.00010997,2]
[335588684,1724346640052,-566.7453937,0.00010997,2]
[335588685,1724346640064,-2303.03450423,0.00010997,2]
[335588686,1724346640073,-500.0,0.00010998,2]
[335588687,1724346640083,-277.24900695,0.00010998,2]
[335588688,1724346640093,-316.48945651,0.00010998,2]
[335588689,1724346640104,-183.51054349,0.00010998,2]
[335588690,1724346640114,-500.0,0.00010998,2]
[335588691,1724346640123,-247.10270057,0.00010998,2]
[335588692,1724346640133,-317.38675594,0.00010998,2]
[335588693,1724346640144,-182.61324406,0.00010998,2]
[335588694,1724346640153,-500.0,0.00010998,2]
[335588695,1724346640164,-520.88,0.00010998,2]
[335588696,1724346640173,-647.31798878,0.00010998,2]
[335588697,1724346640183,-500.0,0.00010998,2]
[335588698,1724346640191,-500.0,0.00010998,2]
[335588699,1724346640201,-500.0,0.00010998,2]
[335588700,1724346640210,-500.0,0.00010998,2]
[335588701,1724346640220,-500.00000075,0.00010998,2]
[335588702,1724346640231,-500.0,0.00010998,2]
[335588704,1724346640241,-500.0,0.00010998,2]
[335588706,1724346640250,-500.0,0.00010998,2]
[335588708,1724346640264,-500.0,0.00010998,2]
[335588710,1724346640273,-500.0,0.00010998,2]
[335588712,1724346640283,-540.64276087,0.00010998,2]
[335588714,1724346640292,-500.0,0.00010998,2]
[335588715,1724346640302,-500.0,0.00010998,2]
[335588717,1724346640311,-500.0,0.00010998,2]
[335588719,1724346640320,-500.0,0.00010998,2]
[335588721,1724346640330,-500.0,0.00010998,2]
[335588722,1724346640341,-500.0,0.00010998,2]
[335588724,1724346640351,-500.0,0.00010998,2]
[335588725,1724346640360,-500.0,0.00010998,2]
[335588726,1724346640369,-500.0,0.00010998,2]
[335588727,1724346640378,-500.0,0.00010998,2]
[335588728,1724346640387,-500.0,0.00010998,2]
[335588729,1724346640397,-268.71,0.00010998,2]
[335588730,1724346640406,-500.0,0.00010998,2]
[335588731,1724346640416,-500.0,0.00010998,2]
[335588732,1724346640426,-500.0,0.00010998,2]
[335588733,1724346640436,-500.0,0.00010998,2]
[335588734,1724346640451,-500.0,0.00010998,2]
[335588735,1724346640465,-500.0,0.00010998,2]
[335588736,1724346640479,-500.0,0.00010998,2]
[335588737,1724346640491,-500.0,0.00010998,2]
[335588738,1724346640502,-500.0,0.00010998,2]
[335588739,1724346640516,-479.26,0.00010998,2]
[335588740,1724346640528,-413.85,0.00010998,2]
[335588741,1724346640541,-586.54,0.00010998,2]
[335588742,1724346640553,-500.0,0.00010998,2]
[335588743,1724346640566,-238.01687518,0.00010998,2]
[335588744,1724346640579,-1702.16913036,0.00010998,2]
[335588745,1724346640595,-2164.31691047,0.00010998,2]
[335588746,1724346640610,-414.4410234,0.00010998,2]
[335588747,1724346640625,-386.48931487,0.00010998,2]
[335588748,1724346640637,-500.0,0.00010998,2]
[335588749,1724346640649,-500.0,0.00010998,2]
[335588750,1724346640662,-500.0,0.00010998,2]
[335588751,1724346640674,-36.12068513,0.00010998,2]
[335588752,1724346640689,-463.87931487,0.00010998,2]
[335588753,1724346640699,-500.0,0.00010998,2]
[335588754,1724346640710,-500.0,0.00010998,2]
[335588755,1724346640722,-150.0,0.00010999,2]
[335588756,1724346640738,-524.0,0.00010999,2]
[335588757,1724346640750,-564.18888089,0.00010999,2]
[335588758,1724346640762,-861.64,0.00010999,2]
[335588759,1724346640773,-3353.24,0.00010999,2]
[335588760,1724346640786,-861.64,0.00010999,2]
[335588761,1724346640799,-3353.24,0.00010999,2]
[335588762,1724346640811,-861.82,0.00010999,2]
[335588763,1724346640824,-3353.24,0.00010999,2]
[335588764,1724346640834,-3353.24,0.00010999,2]
[335588765,1724346640844,-3353.24,0.00010999,2]
[335588766,1724346640855,-3353.24,0.00010999,2]
[335588767,1724346640866,-3353.24,0.00010999,2]
[335588768,1724346640879,-3353.24,0.00010999,2]
[335588769,1724346640891,-3353.24,0.00010999,2]
[335588770,1724346640902,-3353.24,0.00010999,2]
[335588771,1724346640912,-3353.24,0.00010999,2]
[335588772,1724346640925,-3353.24,0.00010999,2]
[335588773,1724346640935,-3353.24,0.00010999,2]
[335588774,1724346640948,-3353.25552145,0.00010999,2]
[335588775,1724346640959,-500.0,0.00010999,2]
[335588776,1724346640970,-500.0,0.00010999,2]
[335588777,1724346640983,-500.0,0.00010999,2]
[335588778,1724346640993,-500.0,0.00010999,2]
[335588779,1724346641006,-500.0,0.00010999,2]
[335588780,1724346641017,-500.0,0.00010999,2]
[335588781,1724346641028,-500.0,0.00010999,2]
[335588782,1724346641039,-500.0,0.00010999,2]
[335588783,1724346641050,-500.0,0.00010999,2]
[335588784,1724346641062,-500.0,0.00010999,2]
[335588785,1724346641073,-500.0,0.00010999,2]
[335588786,1724346641084,-500.0,0.00010999,2]
[335588787,1724346641095,-500.0,0.00010999,2]
[335588788,1724346641106,-500.0,0.00010999,2]
[335588789,1724346641118,-500.0,0.00010999,2]
[335588790,1724346641130,-500.0,0.00010999,2]
[335588791,1724346641142,-500.0,0.00010999,2]
[335588792,1724346641154,-529.85,0.00010999,2]
[335588793,1724346641165,-53316.56111019,0.00010999,2]
[335588794,1724346641183,-2775.89751232,0.00010999,2]
[335588810,1724346644282,-636.225,0.00010999,2]
[335588811,1724346644299,-108934.70804647,0.00010999,2]
[335588812,1724346644310,-500.0,0.00010999,2]
[335588813,1724346644319,-500.0,0.00010999,2]
[335588814,1724346644328,-500.0,0.00010999,2]
[335588815,1724346644339,-500.0,0.00010999,2]
[335588816,1724346644349,-500.0,0.00010999,2]
[335588817,1724346644359,-608.52,0.00010999,2]
[335588818,1724346644368,-500.0,0.00010999,2]
[335588819,1724346644377,-500.0,0.00010999,2]
[335588820,1724346644386,-500.0,0.00010999,2]
[335588821,1724346644395,-500.0,0.00010999,2]
[335588822,1724346644405,-500.0,0.00010999,2]
[335588823,1724346644414,-500.0,0.00010999,2]
[335588824,1724346644424,-500.0,0.00010999,2]
[335588825,1724346644433,-500.0,0.00010999,2]
[335588826,1724346644443,-500.0,0.00010999,2]
[335588827,1724346644452,-500.0,0.00010999,2]
[335588828,1724346644461,-500.0,0.00010999,2]
[335588829,1724346644470,-500.0,0.00010999,2]
[335588830,1724346644481,-500.0,0.00010999,2]
[335588831,1724346644490,-500.0,0.00010999,2]
[335588832,1724346644499,-500.0,0.00010999,2]
[335588833,1724346644508,-500.0,0.00010999,2]
[335588834,1724346644517,-500.0,0.00010999,2]
[335588835,1724346644527,-500.0,0.00010999,2]
[335588836,1724346644536,-500.0,0.00010999,2]
[335588837,1724346644545,-500.0,0.00010999,2]
[335588838,1724346644555,-500.0,0.00010999,2]
[335588839,1724346644564,-500.0,0.00010999,2]
[335588840,1724346644573,-500.0,0.00010999,2]
[335588841,1724346644582,-500.0,0.00010999,2]
[335588842,1724346644592,-500.0,0.00010999,2]
[335588843,1724346644601,-500.0,0.00010999,2]
[335588844,1724346644610,-500.0,0.00010999,2]
[335588845,1724346644619,-500.0,0.00010999,2]
[335588846,1724346644628,-500.0,0.00010999,2]
[335588847,1724346644637,-500.0,0.00010999,2]
[335588848,1724346644646,-500.0,0.00010999,2]
[335588849,1724346644655,-500.0,0.00010999,2]
[335588850,1724346644665,-500.0,0.00010999,2]
[335588851,1724346644674,-500.0,0.00010999,2]
[335588852,1724346644684,-500.0,0.00010999,2]
[335588853,1724346644693,-500.0,0.00010999,2]
[335588854,1724346644702,-500.0,0.00010999,2]
[335588855,1724346644711,-500.0,0.00010999,2]
[335588856,1724346644720,-500.0,0.00010999,2]
[335588857,1724346644732,-781.69,0.00010999,2]
[335588858,1724346644741,-781.69,0.00010999,2]
[335588859,1724346644751,-500.0,0.00010999,2]
[335588860,1724346644760,-781.69,0.00010999,2]
[335588861,1724346644769,-500.0,0.00010999,2]
[335588862,1724346644778,-781.69,0.00010999,2]
[335588863,1724346644787,-500.0,0.00010999,2]
[335588864,1724346644797,-781.69,0.00010999,2]
[335588865,1724346644806,-500.0,0.00010999,2]
[335588866,1724346644815,-781.69,0.00010999,2]
[335588867,1724346644824,-500.0,0.00010999,2]
[335588868,1724346644833,-781.69,0.00010999,2]
[335588869,1724346644842,-329.62,0.00010999,2]
[335588870,1724346644851,-781.69,0.00010999,2]
[335588871,1724346644861,-781.69,0.00010999,2]
[335588872,1724346644871,-964.63,0.00010999,2]
[335588873,1724346644880,-781.69,0.00010999,2]
[335588874,1724346644890,-781.69,0.00010999,2]
[335588875,1724346644899,-964.63,0.00010999,2]
[335588876,1724346644908,-781.69,0.00010999,2]
[335588877,1724346644918,-964.63,0.00010999,2]
[335588878,1724346644930,-781.69,0.00010999,2]
[335588879,1724346644939,-964.63,0.00010999,2]
[335588880,1724346644949,-781.69,0.00010999,2]
[335588881,1724346644958,-964.63,0.00010999,2]
[335588882,1724346644967,-781.69,0.00010999,2]
[335588883,1724346644977,-964.63,0.00010999,2]
[335588884,1724346644989,-781.69,0.00010999,2]
[335588885,1724346644998,-964.63,0.00010999,2]
[335588886,1724346645008,-781.69,0.00010999,2]
[335588887,1724346645018,-964.63,0.00010999,2]
[335588888,1724346645027,-781.69,0.00010999,2]
[335588889,1724346645036,-964.63,0.00010999,2]
[335588890,1724346645046,-781.69,0.00010999,2]
[335588891,1724346645055,-964.63,0.00010999,2]
[335588892,1724346645065,-964.63,0.00010999,2]
[335588893,1724346645075,-781.69,0.00010999,2]
[335588894,1724346645084,-964.63,0.00010999,2]
[335588895,1724346645093,-964.63,0.00010999,2]
[335588896,1724346645102,-781.69,0.00010999,2]
[335588897,1724346645111,-964.63,0.00010999,2]
[335588898,1724346645121,-781.69,0.00010999,2]
[335588899,1724346645131,-964.63,0.00010999,2]
[335588900,1724346645141,-781.69,0.00010999,2]
[335588901,1724346645150,-964.63,0.00010999,2]
[335588902,1724346645160,-781.78,0.00010999,2]
[335588903,1724346645169,-622.64,0.00010999,2]
[335588904,1724346645178,-622.64,0.00010999,2]
[335588905,1724346645187,-964.63,0.00010999,2]
[335588906,1724346645196,-622.64,0.00010999,2]
[335588907,1724346645206,-622.64,0.00010999,2]
[335588908,1724346645215,-964.63,0.00010999,2]
[335588909,1724346645224,-964.63,0.00010999,2]
[335588910,1724346645236,-622.64,0.00010999,2]
[335588911,1724346645245,-622.64,0.00010999,2]
[335588912,1724346645258,-964.63,0.00010999,2]
[335588913,1724346645270,-622.64,0.00010999,2]
[335588914,1724346645279,-964.63,0.00010999,2]
[335588915,1724346645290,-622.64,0.00010999,2]
[335588916,1724346645300,-964.63,0.00010999,2]
[335588917,1724346645309,-964.63,0.00010999,2]
[335588918,1724346645318,-622.64,0.00010999,2]
[335588919,1724346645328,-964.78,0.00010999,2]
[335588920,1724346645340,-622.64,0.00010999,2]
[335588921,1724346645351,-622.64,0.00010999,2]
[335588922,1724346645361,-622.64,0.00010999,2]
[335588923,1724346645371,-622.64,0.00010999,2]
[335588924,1724346645380,-622.64,0.00010999,2]
[335588925,1724346645390,-622.64,0.00010999,2]
[335588926,1724346645399,-622.64,0.00010999,2]
[335588927,1724346645408,-622.64,0.00010999,2]
[335588928,1724346645418,-622.64,0.00010999,2]
[335588929,1724346645428,-622.64,0.00010999,2]
[335588930,1724346645438,-622.64,0.00010999,2]
[335588931,1724346645447,-622.64,0.00010999,2]
[335588932,1724346645457,-622.64,0.00010999,2]
[335588933,1724346645466,-622.64,0.00010999,2]
[335588934,1724346645476,-622.8,0.00010999,2]
[335588935,1724346645486,-500.0,0.00010999,2]
[335588936,1724346645495,-500.0,0.00010999,2]
[335588937,1724346645505,-500.0,0.00010999,2]
[335588938,1724346645514,-500.0,0.00010999,2]
[335588939,1724346645524,-500.0,0.00010999,2]
[335588940,1724346645533,-500.0,0.00010999,2]
[335588941,1724346645542,-500.0,0.00010999,2]
[335588942,1724346645552,-500.0,0.00010999,2]
[335588943,1724346645563,-500.0,0.00010999,2]
[335588945,1724346645572,-500.0,0.00010999,2]
[335588947,1724346645581,-500.0,0.00010999,2]
[335588949,1724346645591,-500.0,0.00010999,2]
[335588950,1724346645600,-500.0,0.00010999,2]
[335588951,1724346645609,-500.0,0.00010999,2]
[335588952,1724346645618,-500.0,0.00010999,2]
[335588953,1724346645627,-500.0,0.00010999,2]
[335588954,1724346645636,-566.06,0.00010999,2]
[335588955,1724346645646,-809.8,0.00010999,2]
[335588956,1724346645656,-809.8,0.00010999,2]
[335588957,1724346645665,-809.8,0.00010999,2]
[335588958,1724346645674,-809.8,0.00010999,2]
[335588959,1724346645684,-809.8,0.00010999,2]
[335588960,1724346645694,-809.8,0.00010999,2]
[335588961,1724346645703,-809.8,0.00010999,2]
[335588962,1724346645712,-809.8,0.00010999,2]